[Event "Berliner Meisterschaft 2023"]
[Site "Berlin"]
[Date "2023.04.14"]
[Round "7.6"]
[White "von Herman, Ulf"]
[Black "Piz, Dr. Maxim"]
[Result "1-0"]
[TimeControl "90 minutes / 40 moves + 30 minutes + 30 seconds"]
[WhiteTitle "IM"]
[WhiteFideId "4608500"]
[BlackFideId "24602981"]
[WhiteElo "2332"]
[BlackElo "2158"]

1. c4 {[%clk 01:29:22]} {[%emt 00:01:38]} e5 {[%clk 01:30:38]} {[%emt
00:00:22]} 2. Nc3 {[%clk 01:29:38]} {[%emt 00:00:14]} Nf6 {[%clk 01:30:53]}
{[%emt 00:00:16]} 3. Nf3 {[%clk 01:29:46]} {[%emt 00:00:21]} Nc6 {[%clk
01:30:43]} {[%emt 00:00:40]} 4. g3 {[%clk 01:30:09]} {[%emt 00:00:06]} d5
{[%clk 01:30:55]} {[%emt 00:00:19]} 5. cxd5 {[%clk 01:30:26]} {[%emt 00:00:13]}
Nxd5 {[%clk 01:31:22]} {[%emt 00:00:03]} 6. Bg2 {[%clk 01:30:44]} {[%emt
00:00:12]} Nb6 {[%clk 01:31:38]} {[%emt 00:00:14]} 7. O-O {[%clk 01:30:59]}
{[%emt 00:00:14]} Be7 {[%clk 01:31:44]} {[%emt 00:00:24]} 8. a3 {[%clk
01:30:44]} {[%emt 00:00:46]} a5 {[%clk 01:31:51]} {[%emt 00:00:23]} 9. d3
{[%clk 01:27:58]} {[%emt 00:03:15]} Be6 {[%clk 01:30:44]} {[%emt 00:01:37]} 10.
Be3 {[%clk 01:27:19]} {[%emt 00:01:09]} Nd5 {[%clk 01:28:25]} {[%emt 00:02:49]}
11. Nxd5 {[%clk 01:19:17]} {[%emt 00:08:33]} Bxd5 {[%clk 01:28:47]} {[%emt
00:00:08]} 12. Rc1 {[%clk 01:19:28]} {[%emt 00:00:19]} O-O {[%clk 01:27:47]}
{[%emt 00:01:30]} 13. Nd2 {[%clk 01:13:03]} {[%emt 00:06:54]} Bxg2 {[%clk
01:27:33]} {[%emt 00:00:44]} 14. Kxg2 {[%clk 01:13:31]} {[%emt 00:00:02]} Kh8
{[%clk 01:27:31]} {[%emt 00:00:32]} 15. Qb3 {[%clk 01:12:05]} {[%emt 00:01:55]}
Rb8 {[%clk 01:26:57]} {[%emt 00:01:05]} 16. Qb5 {[%clk 01:11:22]} {[%emt
00:01:13]} f5 {[%clk 01:26:43]} {[%emt 00:00:44]} 17. Nf3 {[%clk 00:45:52]}
{[%emt 00:26:00]} Bf6 {[%clk 01:19:47]} {[%emt 00:07:27]} 18. Rc4 {[%clk
00:44:32]} {[%emt 00:01:49]} Re8 {[%clk 01:17:35]} {[%emt 00:02:42]} 19. Rfc1
{[%clk 00:42:03]} {[%emt 00:03:00]} Qd6 {[%clk 01:05:51]} {[%emt 00:12:14]} 20.
R1c2 {[%clk 00:34:00]} {[%emt 00:08:32]} Qe6 {[%clk 01:02:32]} {[%emt
00:03:48]} 21. Kg1 {[%clk 00:30:13]} {[%emt 00:04:18]} h6 {[%clk 01:01:47]}
{[%emt 00:01:15]} 22. d4 {[%clk 00:27:00]} {[%emt 00:03:44]} exd4 {[%clk
00:59:18]} {[%emt 00:03:00]} 23. Bxd4 {[%clk 00:27:01]} {[%emt 00:00:29]} Red8
{[%clk 00:54:32]} {[%emt 00:05:15]} 24. Bxf6 {[%clk 00:24:22]} {[%emt
00:03:09]} Qxf6 {[%clk 00:54:32]} {[%emt 00:00:30]} 25. e3 {[%clk 00:22:17]}
{[%emt 00:02:35]} Qf7 {[%clk 00:48:02]} {[%emt 00:07:01]} 26. Kg2 {[%clk
00:18:51]} {[%emt 00:03:55]} Rd5 {[%clk 00:44:45]} {[%emt 00:03:46]} 27. Rc5
{[%clk 00:16:14]} {[%emt 00:03:08]} Ne7 {[%clk 00:42:01]} {[%emt 00:03:14]} 28.
Qxa5 {[%clk 00:14:58]} {[%emt 00:01:46]} Rxc5 {[%clk 00:37:34]} {[%emt
00:04:57]} 29. Rxc5 {[%clk 00:15:01]} {[%emt 00:00:27]} Nc6 {[%clk 00:30:22]}
{[%emt 00:07:42]} 30. Qb5 {[%clk 00:11:01]} {[%emt 00:04:29]} Na7 {[%clk
00:25:50]} {[%emt 00:05:02]} 31. Rxf5 {[%clk 00:10:39]} {[%emt 00:00:52]} Nxb5
{[%clk 00:26:19]} {[%emt 00:00:01]} 32. Rxf7 {[%clk 00:10:50]} {[%emt
00:00:19]} Rc8 {[%clk 00:26:41]} {[%emt 00:00:09]} 33. Rd7 {[%clk 00:09:49]}
{[%emt 00:01:30]} Nd6 {[%clk 00:27:05]} {[%emt 00:00:07]} 34. a4 {[%clk
00:09:42]} {[%emt 00:00:37]} Nc4 {[%clk 00:26:14]} {[%emt 00:01:19]} 35. b3
{[%clk 00:08:55]} {[%emt 00:01:19]} Na5 {[%clk 00:26:34]} {[%emt 00:00:10]} 36.
Nd2 {[%clk 00:07:26]} {[%emt 00:01:57]} c5 {[%clk 00:26:42]} {[%emt 00:00:23]}
37. f4 {[%clk 00:06:27]} {[%emt 00:01:29]} Rc6 {[%clk 00:26:27]} {[%emt
00:00:46]} 38. Kf3 {[%clk 00:06:28]} {[%emt 00:00:28]} Kg8 {[%clk 00:25:45]}
{[%emt 00:01:12]} 39. Rd5 {[%clk 00:06:25]} {[%emt 00:00:33]} b6 {[%clk
00:26:01]} {[%emt 00:00:15]} 40. Rd3 {[%clk 00:05:17]} {[%emt 00:01:37]} Re6
{[%clk 00:25:19]} {[%emt 00:01:12]} 41. Nc4 {[%clk 00:04:28]} {[%emt 00:01:19]}
Nc6 {[%clk 00:22:56]} {[%emt 00:02:54]} 42. Rd7 {[%clk 00:04:11]} {[%emt
00:00:46]} Rf6 {[%clk 00:23:07]} {[%emt 00:00:20]} 43. Rb7 {[%clk 00:02:56]}
{[%emt 00:01:44]} Kh7 {[%clk 00:23:36]} {[%emt 00:00:01]} 44. Ke2 {[%clk
00:02:34]} {[%emt 00:00:51]} Re6 {[%clk 00:23:48]} {[%emt 00:00:18]} 45. Rxb6
{[%clk 00:01:16]} {[%emt 00:01:48]} Nd4+ {[%clk 00:24:09]} {[%emt 00:00:09]} 46.
Kd3 {[%clk 00:01:15]} {[%emt 00:00:31]} Rxb6 {[%clk 00:24:37]} {[%emt
00:00:02]} 47. Nxb6 {[%clk 00:01:32]} {[%emt 00:00:12]} Nxb3 {[%clk 00:25:06]}
{[%emt 00:00:02]} 48. Nc4 {[%clk 00:01:51]} {[%emt 00:00:11]} Nc1+ {[%clk
00:25:14]} {[%emt 00:00:22]} 49. Ke4 {[%clk 00:02:06]} {[%emt 00:00:14]} Na2
{[%clk 00:25:32]} {[%emt 00:00:12]} 50. Kd5 {[%clk 00:02:17]} {[%emt 00:00:19]}
Nc3+ {[%clk 00:26:01]} {[%emt 00:00:01]} 51. Kxc5 {[%clk 00:02:32]} {[%emt
00:00:14]} Nxa4+ {[%clk 00:26:30]} {[%emt 00:00:02]} 52. Kb4 {[%clk 00:02:33]}
{[%emt 00:00:28]} 1-0

[Event "Berliner Meisterschaft 2023"]
[Site "Berlin"]
[Date "2023.04.14"]
[Round "7.7"]
[White "Richter, Michael"]
[Black "Haug, Havard"]
[Result "1/2-1/2"]
[TimeControl "90 minutes / 40 moves + 30 minutes + 30 seconds"]
[WhiteTitle "GM"]
[WhiteFideId "4618920"]
[BlackFideId "1547887"]
[WhiteElo "2465"]
[BlackElo "2090"]

1. Nf3 {[%clk 01:29:11]} {[%emt 00:01:48]} d5 {[%clk 01:30:56]} {[%emt
00:00:05]} 2. c4 {[%clk 01:28:30]} {[%emt 00:01:10]} e6 {[%clk 01:31:18]}
{[%emt 00:00:09]} 3. g3 {[%clk 01:27:21]} {[%emt 00:01:38]} c5 {[%clk
01:31:31]} {[%emt 00:00:18]} 4. Bg2 {[%clk 01:27:13]} {[%emt 00:00:37]} Nf6
{[%clk 01:31:52]} {[%emt 00:00:08]} 5. O-O {[%clk 01:26:51]} {[%emt 00:00:54]}
Nc6 {[%clk 01:31:51]} {[%emt 00:00:32]} 6. cxd5 {[%clk 01:25:37]} {[%emt
00:01:43]} exd5 {[%clk 01:32:12]} {[%emt 00:00:09]} 7. d4 {[%clk 01:25:54]}
{[%emt 00:00:12]} Be7 {[%clk 01:32:24]} {[%emt 00:00:19]} 8. dxc5 {[%clk
01:25:49]} {[%emt 00:00:35]} Bxc5 {[%clk 01:32:37]} {[%emt 00:00:17]} 9. Nbd2
{[%clk 01:16:38]} {[%emt 00:09:40]} O-O {[%clk 01:31:47]} {[%emt 00:01:17]} 10.
Nb3 {[%clk 01:14:29]} {[%emt 00:02:42]} Bb6 {[%clk 01:32:12]} {[%emt 00:00:05]}
11. Nbd4 {[%clk 01:02:29]} {[%emt 00:12:29]} Bg4 {[%clk 01:28:34]} {[%emt
00:04:09]} 12. Nxc6 {[%clk 00:53:45]} {[%emt 00:09:13]} bxc6 {[%clk 01:28:56]}
{[%emt 00:00:07]} 13. Ne5 {[%clk 00:53:25]} {[%emt 00:00:50]} Qc8 {[%clk
01:25:22]} {[%emt 00:04:05]} 14. Nxg4 {[%clk 00:51:32]} {[%emt 00:02:23]} Qxg4
{[%clk 01:23:13]} {[%emt 00:02:38]} 15. e3 {[%clk 00:50:35]} {[%emt 00:01:27]}
Qf5 {[%clk 01:20:37]} {[%emt 00:03:06]} 16. b3 {[%clk 00:38:00]} {[%emt
00:13:05]} Rad8 {[%clk 01:14:31]} {[%emt 00:06:34]} 17. Bb2 {[%clk 00:36:10]}
{[%emt 00:02:21]} Rfe8 {[%clk 01:13:25]} {[%emt 00:01:37]} 18. Qf3 {[%clk
00:28:25]} {[%emt 00:08:14]} Qe6 {[%clk 01:10:39]} {[%emt 00:03:15]} 19. Bxf6
{[%clk 00:27:47]} {[%emt 00:01:09]} Qxf6 {[%clk 01:11:05]} {[%emt 00:00:05]} 20.
Qxf6 {[%clk 00:28:01]} {[%emt 00:00:16]} gxf6 {[%clk 01:11:27]} {[%emt
00:00:09]} 21. Rfd1 {[%clk 00:27:58]} {[%emt 00:00:31]} d4 {[%clk 01:10:55]}
{[%emt 00:01:03]} 22. Bxc6 {[%clk 00:25:36]} {[%emt 00:02:52]} Re6 {[%clk
01:11:20]} {[%emt 00:00:06]} 23. Bb5 {[%clk 00:21:38]} {[%emt 00:04:28]} dxe3
{[%clk 01:11:17]} {[%emt 00:00:34]} 24. Rxd8+ {[%clk 00:22:00]} {[%emt
00:00:08]} Bxd8 {[%clk 01:11:40]} {[%emt 00:00:07]} 25. fxe3 {[%clk 00:22:17]}
{[%emt 00:00:12]} Rxe3 {[%clk 01:11:50]} {[%emt 00:00:20]} 26. Rd1 {[%clk
00:22:02]} {[%emt 00:00:44]} Bb6 {[%clk 01:11:47]} {[%emt 00:00:34]} 27. Kg2
{[%clk 00:22:25]} {[%emt 00:00:07]} Kf8 {[%clk 01:10:59]} {[%emt 00:01:18]} 28.
Bc4 {[%clk 00:21:48]} {[%emt 00:01:06]} Ke7 {[%clk 01:10:58]} {[%emt 00:00:31]}
29. Rd2 {[%clk 00:21:01]} {[%emt 00:01:18]} Bc7 {[%clk 01:07:21]} {[%emt
00:04:07]} 30. Rd4 {[%clk 00:19:01]} {[%emt 00:02:27]} Kf8 {[%clk 01:05:53]}
{[%emt 00:01:59]} 31. Kh3 {[%clk 00:14:37]} {[%emt 00:04:52]} Bb6 {[%clk
01:04:03]} {[%emt 00:02:21]} 32. Rh4 {[%clk 00:12:46]} {[%emt 00:02:21]} Kg7
{[%clk 01:03:30]} {[%emt 00:01:03]} 33. Rg4+ {[%clk 00:13:11]} {[%emt
00:00:06]} Kf8 {[%clk 01:03:53]} {[%emt 00:00:07]} 34. Rf4 {[%clk 00:13:33]}
{[%emt 00:00:08]} Kg7 {[%clk 01:04:15]} {[%emt 00:00:09]} 35. b4 {[%clk
00:12:37]} {[%emt 00:01:25]} Re5 {[%clk 01:03:29]} {[%emt 00:01:16]} 36. a4
{[%clk 00:11:56]} {[%emt 00:01:11]} Be3 {[%clk 01:02:57]} {[%emt 00:01:02]} 37.
Rg4+ {[%clk 00:10:42]} {[%emt 00:01:45]} Rg5 {[%clk 01:02:55]} {[%emt
00:00:33]} 38. b5 {[%clk 00:06:56]} {[%emt 00:04:15]} Rxg4 {[%clk 00:59:40]}
{[%emt 00:03:45]} 39. Kxg4 {[%clk 00:07:19]} {[%emt 00:00:07]} Kf8 {[%clk
01:00:04]} {[%emt 00:00:06]} 40. a5 {[%clk 00:04:11]} {[%emt 00:03:38]} Bg1
{[%clk 00:59:03]} {[%emt 00:01:30]} 41. h3 {[%clk 00:28:52]} {[%emt 00:05:49]}
h6 {[%clk 01:28:06]} {[%emt 00:01:29]} 42. Kf5 {[%clk 00:25:10]} {[%emt
00:04:11]} Ke7 {[%clk 01:26:55]} {[%emt 00:01:40]} 43. g4 {[%clk 00:17:45]}
{[%emt 00:07:56]} Bf2 {[%clk 01:26:31]} {[%emt 00:00:55]} 44. Ke4 {[%clk
00:17:25]} {[%emt 00:00:49]} Kd6 {[%clk 01:22:43]} {[%emt 00:04:18]} 45. Bxf7
{[%clk 00:17:18]} {[%emt 00:00:36]} Be1 {[%clk 01:22:56]} {[%emt 00:00:18]} 46.
b6 {[%clk 00:06:30]} {[%emt 00:11:18]} a6 {[%clk 01:23:14]} {[%emt 00:00:13]}
47. Bc4 {[%clk 00:01:15]} {[%emt 00:05:44]} Bxa5 {[%clk 01:23:35]} {[%emt
00:00:09]} 48. b7 {[%clk 00:01:33]} {[%emt 00:00:12]} Kc7 {[%clk 01:23:57]}
{[%emt 00:00:09]} 49. Bxa6 {[%clk 00:01:56]} {[%emt 00:00:06]} Bd2 {[%clk
01:23:53]} {[%emt 00:00:35]} 50. Kf5 {[%clk 00:02:07]} {[%emt 00:00:19]} Bg5
{[%clk 01:24:17]} {[%emt 00:00:06]} 51. Kg6 {[%clk 00:02:20]} {[%emt 00:00:16]}
Kb8 {[%clk 01:24:38]} {[%emt 00:00:10]} 52. Kh5 {[%clk 00:02:36]} {[%emt
00:00:13]} Bd2 {[%clk 01:25:01]} {[%emt 00:01:00]} 1/2-1/2

[Event "Berliner Meisterschaft 2023"]
[Site "Berlin"]
[Date "2023.04.14"]
[Round "7.8"]
[White "Eilenberg, Jonas"]
[Black "Meyer-Dunker, Paul"]
[Result "1-0"]
[TimeControl "90 minutes / 40 moves + 30 minutes + 30 seconds"]
[WhiteFideId "16204271"]
[BlackFideId "24657280"]
[WhiteElo "2227"]
[BlackElo "2113"]

1. c4 {[%clk 01:30:58]} {[%emt 00:00:02]} Nf6 {[%clk 01:28:55]} {[%emt
00:02:05]} 2. d4 {[%clk 01:31:07]} {[%emt 00:00:20]} e6 {[%clk 01:29:02]}
{[%emt 00:00:23]} 3. Nc3 {[%clk 01:31:27]} {[%emt 00:00:09]} d5 {[%clk
01:29:24]} {[%emt 00:00:08]} 4. cxd5 {[%clk 01:31:44]} {[%emt 00:00:14]} exd5
{[%clk 01:29:48]} {[%emt 00:00:06]} 5. Bg5 {[%clk 01:32:05]} {[%emt 00:00:07]}
c6 {[%clk 01:26:01]} {[%emt 00:04:17]} 6. e3 {[%clk 01:32:28]} {[%emt
00:00:08]} Bf5 {[%clk 01:24:33]} {[%emt 00:01:58]} 7. Qf3 {[%clk 01:32:49]}
{[%emt 00:00:09]} Bg6 {[%clk 01:23:48]} {[%emt 00:01:16]} 8. Bxf6 {[%clk
01:33:12]} {[%emt 00:00:07]} Qxf6 {[%clk 01:23:55]} {[%emt 00:00:22]} 9. Qxf6
{[%clk 01:33:36]} {[%emt 00:00:06]} gxf6 {[%clk 01:24:21]} {[%emt 00:00:05]} 10.
Nf3 {[%clk 01:33:11]} {[%emt 00:00:55]} Nd7 {[%clk 01:21:12]} {[%emt 00:03:39]}
11. Nh4 {[%clk 01:27:55]} {[%emt 00:05:45]} Be7 {[%clk 01:09:12]} {[%emt
00:12:30]} 12. Ne2 {[%clk 01:27:04]} {[%emt 00:01:22]} Nb6 {[%clk 01:07:53]}
{[%emt 00:01:49]} 13. Ng3 {[%clk 01:27:12]} {[%emt 00:00:21]} Nc8 {[%clk
01:03:47]} {[%emt 00:04:36]} 14. f4 {[%clk 01:17:35]} {[%emt 00:10:07]} Be4
{[%clk 01:01:27]} {[%emt 00:02:51]} 15. Nxe4 {[%clk 01:16:12]} {[%emt
00:01:53]} dxe4 {[%clk 01:01:34]} {[%emt 00:00:23]} 16. Nf5 {[%clk 01:16:09]}
{[%emt 00:00:33]} Nd6 {[%clk 01:00:11]} {[%emt 00:01:53]} 17. Nxd6+ {[%clk
01:16:11]} {[%emt 00:00:28]} Bxd6 {[%clk 01:00:39]} {[%emt 00:00:02]} 18. g3
{[%clk 01:15:37]} {[%emt 00:01:04]} Bb4+ {[%clk 00:50:18]} {[%emt 00:10:51]} 19.
Ke2 {[%clk 01:11:04]} {[%emt 00:05:03]} O-O-O {[%clk 00:50:35]} {[%emt
00:00:14]} 20. a3 {[%clk 01:07:33]} {[%emt 00:04:01]} Ba5 {[%clk 00:48:21]}
{[%emt 00:02:44]} 21. b4 {[%clk 01:05:33]} {[%emt 00:02:30]} Bb6 {[%clk
00:48:30]} {[%emt 00:00:21]} 22. Bh3+ {[%clk 01:05:20]} {[%emt 00:00:43]} Kc7
{[%clk 00:43:39]} {[%emt 00:05:22]} 23. Bf5 {[%clk 01:03:29]} {[%emt 00:02:21]}
Rde8 {[%clk 00:38:22]} {[%emt 00:05:47]} 24. g4 {[%clk 00:58:26]} {[%emt
00:05:31]} h5 {[%clk 00:35:02]} {[%emt 00:03:50]} 25. g5 {[%clk 00:50:01]}
{[%emt 00:08:56]} fxg5 {[%clk 00:34:18]} {[%emt 00:01:14]} 26. fxg5 {[%clk
00:50:26]} {[%emt 00:00:05]} h4 {[%clk 00:33:39]} {[%emt 00:01:10]} 27. Rhg1
{[%clk 00:48:45]} {[%emt 00:02:10]} Kb8 {[%clk 00:22:35]} {[%emt 00:11:35]} 28.
Rg4 {[%clk 00:42:25]} {[%emt 00:06:49]} Rhg8 {[%clk 00:11:25]} {[%emt
00:11:40]} 29. Rag1 {[%clk 00:35:06]} {[%emt 00:07:48]} Bd8 {[%clk 00:11:51]}
{[%emt 00:00:04]} 30. Bxe4 {[%clk 00:25:51]} {[%emt 00:09:45]} Rxg5 {[%clk
00:10:11]} {[%emt 00:02:11]} 31. Rxg5 {[%clk 00:26:15]} {[%emt 00:00:06]} Bxg5
{[%clk 00:10:38]} {[%emt 00:00:03]} 32. Rxg5 {[%clk 00:26:36]} {[%emt
00:00:09]} Rxe4 {[%clk 00:10:59]} {[%emt 00:00:09]} 33. Kf3 {[%clk 00:26:35]}
{[%emt 00:00:31]} Re6 {[%clk 00:10:55]} {[%emt 00:00:34]} 34. Rf5 {[%clk
00:25:29]} {[%emt 00:01:35]} Re7 {[%clk 00:08:41]} {[%emt 00:02:44]} 35. Rh5
{[%clk 00:25:21]} {[%emt 00:00:38]} Kc7 {[%clk 00:08:34]} {[%emt 00:00:38]} 36.
Rxh4 {[%clk 00:25:42]} {[%emt 00:00:08]} Kb6 {[%clk 00:06:45]} {[%emt
00:02:20]} 37. Rh5 {[%clk 00:25:28]} {[%emt 00:00:44]} Re6 {[%clk 00:07:14]}
{[%emt 00:00:02]} 38. h4 {[%clk 00:22:08]} {[%emt 00:03:49]} Rf6+ {[%clk
00:06:28]} {[%emt 00:01:16]} 39. Ke2 {[%clk 00:21:45]} {[%emt 00:00:52]} Rg6
{[%clk 00:06:03]} {[%emt 00:00:56]} 40. Rg5 {[%clk 00:20:52]} {[%emt 00:01:23]}
Re6 {[%clk 00:05:40]} {[%emt 00:00:53]} 41. Rf5 {[%clk 00:19:17]} {[%emt
00:02:04]} Re4 {[%clk 00:05:28]} {[%emt 00:00:42]} 42. Rf4 {[%clk 00:19:15]}
{[%emt 00:00:33]} Re7 {[%clk 00:05:30]} {[%emt 00:00:28]} 43. h5 {[%clk
00:19:09]} {[%emt 00:00:36]} a5 {[%clk 00:03:46]} {[%emt 00:02:14]} 44. h6
{[%clk 00:11:23]} {[%emt 00:08:15]} f6 {[%clk 00:01:53]} {[%emt 00:02:24]} 45.
bxa5+ {[%clk 00:10:53]} {[%emt 00:01:01]} Kxa5 {[%clk 00:02:12]} {[%emt
00:00:11]} 46. Rh4 {[%emt 00:00:44]} Rh7 {[%clk 00:02:07]} 47. Kf3 {[%clk
00:11:29]} {[%emt 00:00:13]} Ka4 {[%clk 00:01:11]} {[%emt 00:01:25]} 48. Kf4
{[%clk 00:11:45]} {[%emt 00:00:15]} Kxa3 {[%clk 00:01:36]} {[%emt 00:00:06]} 49.
Kf5 {[%clk 00:12:11]} {[%emt 00:00:04]} Kb3 {[%clk 00:29:46]} {[%emt 00:02:21]}
50. Kg6 {[%clk 00:41:33]} {[%emt 00:01:08]} Rh8 {[%clk 00:30:08]} {[%emt
00:00:07]} 51. Kg7 {[%clk 00:41:43]} {[%emt 00:00:20]} Rd8 {[%clk 00:28:52]}
{[%emt 00:01:46]} 52. h7 {[%clk 00:41:58]} {[%emt 00:00:14]} Kc4 {[%clk
00:27:58]} {[%emt 00:01:24]} 53. h8=Q {[%clk 00:42:04]} {[%emt 00:00:25]} Rxh8
{[%clk 00:28:23]} {[%emt 00:00:05]} 54. Rxh8 {[%clk 00:42:26]} {[%emt
00:00:07]} Kd3 {[%clk 00:28:20]} {[%emt 00:00:34]} 55. Kxf6 {[%clk 00:42:43]}
{[%emt 00:00:13]} Kxe3 {[%clk 00:28:25]} {[%emt 00:00:26]} 56. Ke5 {[%clk
00:43:08]} {[%emt 00:00:04]} 1-0

[Event "Berliner Meisterschaft 2023"]
[Site "Berlin"]
[Date "2023.04.15"]
[Round "8.1"]
[White "Baskin, Robert"]
[Black "Hesse, Henrik"]
[Result "1-0"]
[TimeControl "90 minutes / 40 moves + 30 minutes + 30 seconds"]
[WhiteTitle "IM"]
[WhiteFideId "24662402"]
[BlackFideId "12956465"]
[WhiteElo "2442"]
[BlackElo "2197"]

1. e4 {[%clk 01:20:11]} {[%emt 00:10:48]} e5 {[%clk 01:30:36]} {[%emt
00:00:24]} 2. Nf3 {[%clk 01:20:31]} {[%emt 00:00:10]} Nf6 {[%clk 01:30:59]}
{[%emt 00:00:09]} 3. Nxe5 {[%clk 01:20:43]} {[%emt 00:00:16]} d6 {[%clk
01:31:19]} {[%emt 00:00:10]} 4. Nf3 {[%clk 01:21:07]} {[%emt 00:00:05]} Nxe4
{[%clk 01:31:44]} {[%emt 00:00:06]} 5. d4 {[%clk 01:21:25]} {[%emt 00:00:12]}
d5 {[%clk 01:32:06]} {[%emt 00:00:07]} 6. Bd3 {[%clk 01:21:46]} {[%emt
00:00:09]} Nc6 {[%clk 01:31:45]} {[%emt 00:00:52]} 7. O-O {[%clk 01:19:33]}
{[%emt 00:02:42]} Be7 {[%clk 01:31:58]} {[%emt 00:00:17]} 8. Nbd2 {[%clk
01:19:47]} {[%emt 00:00:16]} Nxd2 {[%clk 01:32:17]} {[%emt 00:00:11]} 9. Bxd2
{[%clk 01:20:12]} {[%emt 00:00:06]} Bg4 {[%clk 01:30:48]} {[%emt 00:01:59]} 10.
c3 {[%clk 01:20:30]} {[%emt 00:00:11]} O-O {[%clk 01:31:11]} {[%emt 00:00:07]}
11. h3 {[%clk 01:20:50]} {[%emt 00:00:10]} Bh5 {[%clk 01:31:34]} {[%emt
00:00:08]} 12. g3 {[%clk 01:21:14]} {[%emt 00:00:06]} Qd7 {[%clk 01:31:59]}
{[%emt 00:00:05]} 13. Kg2 {[%clk 01:21:38]} {[%emt 00:00:05]} Bg6 {[%clk
01:32:25]} {[%emt 00:00:05]} 14. Bf4 {[%clk 01:17:39]} {[%emt 00:04:29]} Bd6
{[%clk 01:30:39]} {[%emt 00:02:15]} 15. Bxg6 {[%clk 01:10:54]} {[%emt
00:07:15]} fxg6 {[%clk 01:24:50]} {[%emt 00:06:18]} 16. Bxd6 {[%clk 01:08:00]}
{[%emt 00:03:24]} Qxd6 {[%clk 01:25:01]} {[%emt 00:00:20]} 17. Qd3 {[%clk
01:08:23]} {[%emt 00:00:07]} Rf6 {[%clk 01:03:13]} {[%emt 00:22:17]} 18. Rae1
{[%clk 01:06:05]} {[%emt 00:02:48]} Raf8 {[%clk 01:02:28]} {[%emt 00:01:15]} 19.
Ne5 {[%clk 01:06:03]} {[%emt 00:00:31]} g5 {[%clk 01:02:33]} {[%emt 00:00:26]}
20. Qb5 {[%clk 01:03:48]} {[%emt 00:02:45]} Rb8 {[%clk 00:47:39]} {[%emt
00:15:24]} 21. Nd3 {[%clk 00:40:00]} {[%emt 00:24:18]} Ne7 {[%clk 00:38:32]}
{[%emt 00:09:37]} 22. Re5 {[%clk 00:36:59]} {[%emt 00:03:31]} Rf5 {[%clk
00:31:10]} {[%emt 00:07:52]} 23. Rfe1 {[%clk 00:36:20]} {[%emt 00:01:09]} Rxe5
{[%clk 00:31:16]} {[%emt 00:00:25]} 24. Rxe5 {[%clk 00:36:37]} {[%emt
00:00:13]} h6 {[%clk 00:30:27]} {[%emt 00:01:19]} 25. Nc5 {[%clk 00:33:28]}
{[%emt 00:03:39]} b6 {[%clk 00:21:58]} {[%emt 00:08:58]} 26. Re6 {[%clk
00:29:57]} {[%emt 00:04:01]} Qd8 {[%clk 00:22:28]} 27. Nd7 {[%clk 00:26:55]}
{[%emt 00:03:31]} a6 {[%clk 00:18:14]} {[%emt 00:04:44]} 28. Qe2 {[%clk
00:27:03]} {[%emt 00:00:22]} Qxd7 {[%clk 00:17:56]} {[%emt 00:00:48]} 29. Rxe7
{[%clk 00:27:27]} {[%emt 00:00:06]} Qd6 {[%clk 00:17:43]} {[%emt 00:00:43]} 30.
Qe5 {[%clk 00:26:47]} {[%emt 00:01:11]} Qxe5 {[%clk 00:07:38]} {[%emt
00:10:35]} 31. dxe5 {[%clk 00:26:56]} {[%emt 00:00:20]} c5 {[%clk 00:04:54]}
{[%emt 00:03:14]} 32. Rd7 {[%clk 00:27:08]} {[%emt 00:00:18]} d4 {[%clk
00:02:38]} {[%emt 00:02:47]} 33. cxd4 {[%clk 00:26:44]} {[%emt 00:00:54]} cxd4
{[%clk 00:03:05]} {[%emt 00:00:03]} 34. Rxd4 {[%clk 00:26:51]} {[%emt
00:00:23]} Re8 {[%clk 00:03:24]} {[%emt 00:00:10]} 35. f4 {[%clk 00:25:44]}
{[%emt 00:01:37]} gxf4 {[%clk 00:03:10]} {[%emt 00:00:44]} 36. gxf4 {[%clk
00:26:08]} {[%emt 00:00:05]} g5 {[%clk 00:03:23]} {[%emt 00:00:18]} 37. Kf3
{[%clk 00:25:06]} {[%emt 00:01:32]} gxf4 {[%clk 00:03:35]} {[%emt 00:00:18]} 38.
Kxf4 {[%clk 00:25:31]} {[%emt 00:00:05]} Rf8+ {[%clk 00:03:56]} {[%emt
00:00:09]} 39. Ke3 {[%clk 00:23:58]} {[%emt 00:02:02]} Rf5 {[%clk 00:03:23]}
{[%emt 00:01:04]} 40. Rg4+ {[%clk 00:24:14]} {[%emt 00:00:14]} Kh7 {[%clk
00:03:21]} {[%emt 00:00:32]} 41. e6 {[%clk 00:24:23]} {[%emt 00:00:21]} Rf1
{[%clk 00:02:02]} {[%emt 00:01:49]} 42. Kd4 {[%clk 00:22:45]} {[%emt 00:02:07]}
Rd1+ {[%clk 00:02:20]} {[%emt 00:00:12]} 43. Ke5 {[%clk 00:22:36]} {[%emt
00:00:39]} h5 {[%clk 00:02:21]} {[%emt 00:00:29]} 44. Rd4 {[%clk 00:22:46]}
{[%emt 00:00:20]} Re1+ {[%clk 00:01:36]} {[%emt 00:01:16]} 45. Re4 {[%clk
00:22:56]} {[%emt 00:00:20]} Rxe4+ {[%clk 00:00:40]} {[%emt 00:01:25]} 46. Kxe4
{[%clk 00:23:21]} {[%emt 00:00:05]} Kg6 {[%clk 00:01:07]} {[%emt 00:00:03]} 47.
Ke5 {[%clk 00:23:44]} {[%emt 00:00:07]} Kg7 {[%clk 00:01:32]} {[%emt 00:00:05]}
48. Kd6 {[%clk 00:24:10]} {[%emt 00:00:04]} Kf8 {[%clk 00:01:59]} {[%emt
00:00:03]} 49. Kd7 {[%clk 00:24:36]} {[%emt 00:00:04]} 1-0